[Event "VII Lorca Open 2018"]
[Site "Lorca"]
[Date "2018.12.26"]
[Round "1"]
[White "Cuellar Montes, Alejandro"]
[Black "Nasuta, Grzegorz"]
[Result "0-1"]
[ECO "D31"]
[WhiteElo "2064"]
[BlackElo "2530"]
[Annotator "ChessBase"]
[PlyCount "120"]
[EventDate "2018.12.26"]
[EventType "swiss"]
[EventCountry "ESP"]
[SourceTitle "playchess.com"]
[Source "ChessBase"]
[SourceQuality "1"]
[TimeControl "5400+30"]

1. d4 {[%emt 0:00:00]} d5 {[%emt 0:00:00]} 2. c4 {[%emt 0:00:00]} e6 {[%emt 0:00:00]} 3. Nc3 {[%emt 0:00:03]} c6 {[%emt 0:00:04]} 4. Nf3 {[%emt 0:00:19]} dxc4 {[%emt 0:00:17]} 5. a4 {[%emt 0:00:07]} Bb4 {[%emt 0:00:26]} 6. e3 {[%emt 0:00:20]} b5 {[%emt 0:00:08]} 7. Bd2 {[%emt 0:00:24]} a5 {[%emt 0:00:09]} 8. axb5 {[%emt 0:00:09]} Bxc3 {[%emt 0:00:06]} 9. Bxc3 {[%emt 0:00:07]} cxb5 {[%emt 0:00:06]} 10. b3 {[%emt 0:00:14]} Bb7 {[%emt 0:00:06]} 11. bxc4 {[%emt 0:00:05]} b4 {[%emt 0:00:05]} 12. Bb2 {[%emt 0:00:06]} Nf6 {[%emt 0:00:34]} 13. c5 {[%emt 0:00:16]} O-O {[%emt 0:02:06]} 14. Bb5 {[%emt 0:02:24]} Nc6 {[%emt 0:01:32]} 15. O-O {[%emt 0:01:48]} Qd5 {[%emt 0:00:11]} 16. Qe2 {[%emt 0:02:54]} Ne7 {[%emt 0:02:24]} 17. Bc4 {[%emt 0:12:55]} Qh5 {[%emt 0:08:03]} 18. Nd2 {[%emt 0:11:51]} Qxe2 {[%emt 0:10:30]} 19. Bxe2 {[%emt 0:00:08]} a4 {[%emt 0:00:09]} 20. Rfb1 {[%emt 0:08:29]} Rfb8 {[%emt 0:30:38]} 21. Bf3 {[%emt 0:07:12]} Bxf3 {[%emt 0:10:11]} 22. gxf3 {[%emt 0:00:06]} a3 {[%emt 0:00:57]} 23. Bc1 {[%emt 0:01:51]} e5 {[%emt 0:00:13]} 24. dxe5 {[%emt 0:03:58]} Nd7 {[%emt 0:00:07]} 25. Nc4 {[%emt 0:06:51]} Nxc5 {[%emt 0:01:46]} 26. Nxa3 {[%emt 0:03:19]} bxa3 {[%emt 0:02:08]} 27. Rxb8+ {[%emt 0:01:33]} Rxb8 {[%emt 0:00:06]} 28. Bxa3 {[%emt 0:00:04]} Nb3 {[%emt 0:02:13]} 29. Rd1 {[%emt 0:00:25]} Ng6 {[%emt 0:04:31]} 30. f4 {[%emt 0:01:44]} Nh4 {[%emt 0:01:23]} 31. h3 {[%emt 0:06:37]} h6 {[%emt 0:01:16]} 32. Kf1 {[%emt 0:01:45]} Ra8 {[%emt 0:01:22]} 33. Be7 {[%emt 0:03:25]} Nf5 {[%emt 0:00:42]} 34. Bb4 {[%emt 0:01:25]} Ra4 {[%emt 0:01:11]} 35. Bc3 {[%emt 0:01:52]} Nc5 {[%emt 0:06:14]} 36. Rd5 {[%emt 0:04:49]} Rc4 {[%emt 0:03:06]} 37. Bd2 {[%emt 0:00:46]} Ne6 {[%emt 0:01:36]} 38. f3 {[%emt 0:02:17]} Rc2 {[%emt 0:01:32]} 39. Ke2 {[%emt 0:01:41]} Ra2 {[%emt 0:00:41]} 40. Kd3 {[%emt 0:01:25]} Nh4 {[%emt 0:07:01]} 41. Bc3 {[%emt 0:05:06]} Rh2 {[%emt 0:02:05]} 42. Ke4 {[%emt 0:02:51]} Rxh3 {[%emt 0:00:07]} 43. Rd1 {[%emt 0:01:53]} Nxf3 {[%emt 0:00:43]} 44. f5 {[%emt 0:00:40]} Nfg5+ {[%emt 0:01:27]} 45. Kd5 {[%emt 0:00:56]} Rxe3 {[%emt 0:01:24]} 46. fxe6 {[%emt 0:01:49]} Nxe6 {[%emt 0:00:01]} 47. Bd2 {[%emt 0:00:58]} Rd3+ {[%emt 0:00:18]} 48. Kc4 {[%emt 0:00:36]} Nf4 {[%emt 0:01:25]} 49. Rf1 {[%emt 0:00:23]} Rxd2 {[%emt 0:00:06]} 50. Rxf4 {[%emt 0:00:05]} g5 {[%emt 0:00:34]} 51. Rf6 {[%emt 0:00:17]} Kg7 {[%emt 0:00:01]} 52. Kc5 {[%emt 0:01:49]} Rd7 {[%emt 0:01:09]} 53. Rd6 {[%emt 0:00:23]} Ra7 {[%emt 0:00:13]} 54. Kd4 {[%emt 0:00:16]} Ra4+ {[%emt 0:00:29]} 55. Kd5 {[%emt 0:00:53]} Rf4 {[%emt 0:00:53]} 56. Rd7 {[%emt 0:00:15]} Kg6 {[%emt 0:00:11]} 57. Rd6+ {[%emt 0:00:17]} Kh5 {[%emt 0:00:07]} 58. Kc6 {[%emt 0:00:49]} g4 {[%emt 0:00:09]} 59. Kd7 {[%emt 0:00:35]} Rf5 {[%emt 0:00:15]} 60. Rd5 {[%emt 0:00:30]} f6 {[%emt 0:00:13]} 0-1

[Event "VII Lorca Open 2018"]
[Site "Lorca"]
[Date "2018.12.26"]
[Round "1"]
[White "Bjerre, Tavs"]
[Black "Nayhebaver, Martin"]
[Result "0-1"]
[ECO "E53"]
[WhiteElo "2039"]
[BlackElo "2460"]
[Annotator "RC"]
[PlyCount "58"]
[EventDate "2018.12.26"]
[EventType "swiss"]
[EventCountry "ESP"]
[SourceTitle "playchess.com"]
[Source "ChessBase"]
[SourceQuality "1"]
[TimeControl "5400+30"]

1. d4 {[%emt 0:00:00]} Nf6 {[%emt 0:00:00]} 2. c4 {[%emt 0:00:00]} e6 {[%emt 0:00:17]} 3. Nc3 {[%emt 0:00:02]} Bb4 {[%emt 0:00:25]} 4. e3 {[%emt 0:00:14]} O-O {[%emt 0:00:30]} 5. Bd3 {[%emt 0:00:34]} c5 {[%emt 0:00:36]} 6. Nf3 {[%emt 0:00:32]} d5 {[%emt 0:00:53]} 7. O-O {[%emt 0:00:28]} b6 {[%emt 0:00:57]} 8. Ne5 {[%emt 0:04:29]} dxc4 {[%emt 0:08:42]} 9. Bxc4 {[%emt 0:00:23]} Ba6 {[%emt 0:10:37]} 10. Qf3 {[%emt 0:07:36]} Bxc4 {[%emt 0:00:44]} 11. Nxc4 {[%emt 0:05:16]} Nbd7 {[%emt 0:00:22]} 12. Ne2 {[%emt 0:05:54]} b5 {[%emt 0:08:17]} 13. Nd2 {[%emt 0:06:35]} Rc8 {[%emt 0:12:25]} 14. a3 {[%emt 0:05:20]} Bxd2 {[%emt 0:10:35]} 15. Bxd2 {[%emt 0:00:14]} cxd4 {[%emt 0:01:21]} 16. Nxd4 {[%emt 0:01:09]} Qb6 {[%emt 0:01:00]} 17. Qe2 {[%emt 0:05:33]} e5 {[%emt 0:08:56]} 18. Nf5 {[%emt 0:26:12]} Qe6 {[%emt 0:01:28]} 19. e4 {[%emt 0:06:51]} Rc2 {[%emt 0:01:32]} 20. f3 {[%emt 0:05:31]} Rxb2 {[%emt 0:02:08]} 21. Rab1 {[%emt 0:02:32]} Rxb1 {[%emt 0:08:03]} 22. Rxb1 {[%emt 0:00:06]} g6 {[%emt 0:03:09]} 23. Nh6+ {[%emt 0:06:30]} Kg7 {[%emt 0:00:05]} 24. Qxb5 {[%emt 0:00:09]} Rc8 {[%emt 0:04:38]} 25. Qd3 {[%emt 0:01:49]} Qa2 {[%emt 0:01:29]} 26. Rc1 {[%emt 0:02:39]} Rb8 {[%emt 0:02:19]} 27. Rc2 {[%emt 0:01:08]} Qb1+ {[%emt 0:00:44]} 28. Kf2 {[%emt 0:01:31]} Rb2 {[%emt 0:01:51]} 29. Rc3 {[%emt 0:04:32]} Qd1 {[%emt 0:10:27]} 0-1

[Event "VII Lorca Open 2018"]
[Site "Lorca"]
[Date "2018.12.26"]
[Round "1"]
[White "Donado-Mazarron Gomez, Miguel"]
[Black "Gomez Ledo, Roberto Carlos"]
[Result "0-1"]
[ECO "D41"]
[WhiteElo "2024"]
[BlackElo "2448"]
[Annotator "RC"]
[PlyCount "54"]
[EventDate "2018.12.26"]
[EventType "swiss"]
[EventCountry "ESP"]
[SourceTitle "playchess.com"]
[Source "ChessBase"]
[SourceQuality "1"]
[TimeControl "5400+30"]

1. d4 {[%emt 0:00:00]} d5 {[%emt 0:00:12]} 2. c4 {[%emt 0:00:00]} e6 {[%emt 0:00:37]} 3. Nc3 {[%emt 0:00:01]} Nf6 {[%emt 0:00:25]} 4. cxd5 {[%emt 0:00:12]} Nxd5 {[%emt 0:00:17]} 5. e4 {[%emt 0:00:43]} Nxc3 {[%emt 0:00:09]} 6. bxc3 {[%emt 0:00:07]} c5 {[%emt 0:00:06]} 7. Nf3 {[%emt 0:00:20]} cxd4 {[%emt 0:00:07]} 8. cxd4 {[%emt 0:00:05]} Bb4+ {[%emt 0:00:05]} 9. Bd2 {[%emt 0:00:07]} Bxd2+ {[%emt 0:00:05]} 10. Qxd2 {[%emt 0:00:05]} O-O {[%emt 0:00:09]} 11. Bc4 {[%emt 0:01:05]} b6 {[%emt 0:00:18]} 12. O-O {[%emt 0:00:48]} Bb7 {[%emt 0:00:31]} 13. Rfe1 {[%emt 0:02:30]} Nd7 {[%emt 0:00:14]} 14. a4 {[%emt 0:02:58]} Rb8 {[%emt 0:09:31]} 15. a5 {[%emt 0:16:10]} b5 {[%emt 0:02:24]} 16. Bxb5 {[%emt 0:09:17]} Bxe4 {[%emt 0:00:27]} 17. Bxd7 {[%emt 0:00:52]} Bxf3 {[%emt 0:00:10]} 18. Bxe6 {[%emt 0:00:51]} fxe6 {[%emt 0:17:34]} 19. gxf3 {[%emt 0:00:08]} Rf6 {[%emt 0:09:30]} 20. Re4 {[%emt 0:14:20]} Qd5 {[%emt 0:04:59]} 21. Qe2 {[%emt 0:16:16]} Rbf8 {[%emt 0:03:37]} 22. Re5 {[%emt 0:15:50]} Qxd4 {[%emt 0:04:15]} 23. Rd1 {[%emt 0:00:38]} Qh4 {[%emt 0:11:24]} 24. Rxe6 {[%emt 0:10:41]} Rxf3 {[%emt 0:00:39]} 25. Qe5 {[%emt 0:04:40]} Qg4+ {[%emt 0:01:18]} 26. Kh1 {[%emt 0:00:11]} Rxf2 {[%emt 0:00:41]} 27. Qd5 {[%emt 0:00:21]} Rf1+ {[%emt 0:00:10]} 0-1

[Event "VII Lorca Open 2018"]
[Site "Lorca"]
[Date "2018.12.26"]
[Round "1"]
[White "Cebrian Flores, Juan Antonio"]
[Black "Morozov, Nichita"]
[Result "0-1"]
[ECO "A17"]
[WhiteElo "2015"]
[BlackElo "2439"]
[Annotator "RC"]
[PlyCount "101"]
[EventDate "2018.12.26"]
[EventType "swiss"]
[EventCountry "ESP"]
[SourceTitle "playchess.com"]
[Source "ChessBase"]
[SourceQuality "1"]
[TimeControl "5400+30"]

1. Nf3 {[%emt 0:00:00]} Nf6 {[%emt 0:00:00]} 2. c4 {[%emt 0:01:19]} b6 {[%emt 0:00:00]} 3. g3 {[%emt 0:01:01]} Bb7 {[%emt 0:00:00]} 4. Bg2 {[%emt 0:00:16]} e6 {[%emt 0:00:00]} 5. O-O {[%emt 0:00:36]} Be7 {[%emt 0:00:00]} 6. Nc3 {[%emt 0:00:29]} O-O {[%emt 0:00:00]} 7. Re1 {[%emt 0:01:06]} Ne4 {[%emt 0:00:13]} 8. Nxe4 {[%emt 0:00:57]} Bxe4 {[%emt 0:00:05]} 9. d3 {[%emt 0:00:15]} Bb7 {[%emt 0:00:03]} 10. e4 {[%emt 0:00:59]} c5 {[%emt 0:00:03]} 11. d4 {[%emt 0:01:59]} cxd4 {[%emt 0:00:03]} 12. Nxd4 {[%emt 0:00:06]} d6 {[%emt 0:00:02]} 13. b3 {[%emt 0:00:36]} a6 {[%emt 0:01:02]} 14. Bb2 {[%emt 0:00:49]} Nd7 {[%emt 0:00:26]} 15. h4 {[%emt 0:07:22]} Qc7 {[%emt 0:00:53]} 16. Rc1 {[%emt 0:06:35]} Rfd8 {[%emt 0:02:17]} 17. Qc2 {[%emt 0:17:42]} Rac8 {[%emt 0:00:42]} 18. Qe2 {[%emt 0:02:41]} Bf6 {[%emt 1:33:11]} 19. h5 h6 {[%emt 0:00:00]} 20. Kh1 {[%emt 0:06:13]} Qb8 {[%emt 0:00:00]} 21. f4 {[%emt 0:11:26]} Qa8 {[%emt 0:00:00]} 22. Ba1 {[%emt 0:02:57]} Bxd4 {[%emt 0:02:00]} 23. Bxd4 e5 24. Ba1 Re8 25. f5 Nf6 26. Rcd1 Red8 27. Bc3 b5 28. Bb4 bxc4 {[%emt 0:00:00]} 29. bxc4 {[%emt 0:03:09]} Qb8 {[%emt 0:00:00]} 30. Ba5 {[%emt 0:00:30]} Rd7 {[%emt 0:00:00]} 31. Rb1 {[%emt 0:00:30]} Qa7 {[%emt 0:00:00]} 32. Bb6 {[%emt 0:00:30]} Qa8 {[%emt 0:00:00]} 33. Ba5 {[%emt 0:00:30]} Rc6 {[%emt 0:00:00]} 34. Bf3 {[%emt 0:00:30]} Qa7 {[%emt 0:00:00]} 35. Rbc1 {[%emt 0:00:30]} Qc5 {[%emt 0:00:00]} 36. Qd2 {[%emt 0:00:30]} Rc8 {[%emt 0:00:00]} 37. Bb4 {[%emt 0:00:30]} Qb6 {[%emt 0:00:00]} 38. Ba5 {[%emt 0:00:30]} Qc6 {[%emt 0:00:00]} 39. Kh2 {[%emt 0:00:30]} Nh7 {[%emt 0:00:00]} 40. Bg2 {[%emt 0:00:30]} Qa4 {[%emt 0:00:00]} 41. Bb4 {[%emt 0:00:30]} g6 {[%emt 0:00:00]} 42. Bf3 {[%emt 0:00:30]} a5 {[%emt 0:00:00]} 43. Bxa5 {[%emt 0:00:30]} Rxc4 {[%emt 0:00:00]} 44. Rxc4 {[%emt 0:00:30]} Qxc4 {[%emt 0:00:00]} 45. Qb4 {[%emt 0:00:30]} Qc2+ {[%emt 0:00:00]} 46. Qd2 {[%emt 0:00:30]} Qc8 {[%emt 0:00:00]} 47. Qd3 {[%emt 0:00:30]} Qa8 {[%emt 0:00:00]} 48. Qb5 {[%emt 0:00:30]} Bc6 {[%emt 0:00:00]} 49. Qb4 {[%emt 0:00:30]} Ra7 {[%emt 0:00:00]} 50. Bb6 {[%emt 0:00:30]} Rxa2+ {[%emt 0:00:00]} 51. Kh3 {[%emt 0:00:30]} 0-1

[Event "VII Lorca Open 2018"]
[Site "Lorca"]
[Date "2018.12.26"]
[Round "1"]
[White "Garcia De Blas, Esteban"]
[Black "Solozhenkin, Evgeniy"]
[Result "1-0"]
[ECO "E15"]
[WhiteElo "2000"]
[BlackElo "2427"]
[Annotator "ChessBase"]
[PlyCount "72"]
[EventDate "2018.12.26"]
[EventType "swiss"]
[EventCountry "ESP"]
[SourceTitle "playchess.com"]
[Source "ChessBase"]
[SourceQuality "1"]
[TimeControl "5400+30"]

1. d4 {[%emt 0:00:00]} Nf6 {[%emt 0:00:00]} 2. c4 {[%emt 0:00:00]} e6 {[%emt 0:00:00]} 3. Nf3 {[%emt 0:00:00]} b6 {[%emt 0:00:19]} 4. g3 {[%emt 0:00:30]} Ba6 {[%emt 0:00:14]} 5. b3 {[%emt 0:03:32]} Be7 {[%emt 0:02:19]} 6. Bg2 {[%emt 0:00:10]} d5 {[%emt 0:00:11]} 7. cxd5 {[%emt 0:03:43]} exd5 {[%emt 0:00:06]} 8. O-O {[%emt 0:00:51]} O-O {[%emt 0:00:08]} 9. Re1 {[%emt 0:05:31]} Bb7 {[%emt 0:02:04]} 10. Nbd2 {[%emt 0:10:48]} Na6 {[%emt 0:11:35]} 11. a3 {[%emt 0:03:14]} c5 {[%emt 0:00:12]} 12. Bb2 {[%emt 0:01:04]} Nc7 {[%emt 0:03:38]} 13. e3 {[%emt 0:08:32]} Ne6 {[%emt 0:03:21]} 14. Ne5 {[%emt 0:01:18]} a5 {[%emt 0:03:21]} 15. a4 {[%emt 0:02:26]} Re8 {[%emt 0:04:05]} 16. Rc1 {[%emt 0:01:07]} h6 {[%emt 0:05:44]} 17. h3 {[%emt 0:09:15]} Rc8 {[%emt 0:03:04]} 18. f4 {[%emt 0:05:09]} cxd4 {[%emt 0:06:46]} 19. exd4 {[%emt 0:05:32]} Bb4 {[%emt 0:00:49]} 20. Nd3 {[%emt 0:05:54]} Qd6 {[%emt 0:10:02]} 21. Rxc8 {[%emt 0:09:10]} Rxc8 {[%emt 0:00:21]} 22. Nxb4 {[%emt 0:00:47]} Qxb4 {[%emt 0:00:22]} 23. Nf3 {[%emt 0:02:52]} Ne4 {[%emt 0:05:49]} 24. f5 {[%emt 0:03:13]} Nf8 {[%emt 0:01:47]} 25. Kh2 {[%emt 0:01:12]} Bc6 {[%emt 0:15:21]} 26. Ba1 {[%emt 0:09:18]} Bd7 {[%emt 0:01:00]} 27. g4 {[%emt 0:00:47]} Qd6+ {[%emt 0:01:35]} 28. Ne5 {[%emt 0:03:09]} f6 {[%emt 0:02:14]} 29. Bxe4 {[%emt 0:00:07]} dxe4 {[%emt 0:00:14]} 30. Rxe4 {[%emt 0:00:31]} fxe5 {[%emt 0:04:31]} 31. Rxe5 {[%emt 0:00:22]} Bc6 {[%emt 0:01:13]} 32. Kg1 {[%emt 0:02:48]} Nd7 {[%emt 0:00:25]} 33. Re3 {[%emt 0:00:11]} Qd5 {[%emt 0:01:22]} 34. Qf1 {[%emt 0:00:08]} Qh1+ {[%emt 0:01:32]} 35. Kf2 {[%emt 0:00:06]} Qh2+ {[%emt 0:00:06]} 36. Ke1 {[%emt 0:00:06]} Bb5 {[%emt 0:12:10]} 1-0

[Event "VII Lorca Open 2018"]
[Site "Lorca"]
[Date "2018.12.26"]
[Round "1"]
[White "Borondo Garcia, Raul"]
[Black "Low, Zhen Yu Cyrus"]
[Result "0-1"]
[ECO "D00"]
[WhiteElo "1914"]
[BlackElo "2384"]
[Annotator "NA"]
[PlyCount "84"]
[EventDate "2018.12.26"]
[EventType "swiss"]
[EventCountry "ESP"]
[SourceTitle "playchess.com"]
[Source "ChessBase"]
[SourceQuality "1"]
[TimeControl "5400+30"]

1. d4 {[%emt 0:00:00]} Nf6 {[%emt 0:00:00]} 2. Bg5 {[%emt 0:00:12]} d5 {[%emt 0:00:00]} 3. Bxf6 {[%emt 0:00:40]} exf6 {[%emt 0:00:01]} 4. g3 {[%emt 0:00:38]} Bd6 {[%emt 0:00:39]} 5. Bg2 {[%emt 0:00:05]} c6 {[%emt 0:00:06]} 6. e3 {[%emt 0:00:18]} Nd7 {[%emt 0:00:43]} 7. Ne2 {[%emt 0:02:47]} f5 {[%emt 0:00:19]} 8. O-O {[%emt 0:01:21]} Nf6 {[%emt 0:00:08]} 9. b3 {[%emt 0:00:45]} O-O {[%emt 0:05:07]} 10. c3 {[%emt 0:00:49]} Qe7 {[%emt 0:00:07]} 11. Qc2 {[%emt 0:00:43]} Bd7 {[%emt 0:00:30]} 12. c4 {[%emt 0:00:50]} dxc4 {[%emt 0:00:07]} 13. bxc4 {[%emt 0:00:32]} Rae8 {[%emt 0:01:14]} 14. Nd2 {[%emt 0:08:16]} g6 {[%emt 0:01:27]} 15. a4 {[%emt 0:01:43]} h5 {[%emt 0:05:42]} 16. h4 {[%emt 0:01:24]} Ne4 {[%emt 0:10:41]} 17. a5 {[%emt 0:04:25]} Bb8 {[%emt 0:06:12]} 18. Nf3 {[%emt 0:02:04]} f6 {[%emt 0:03:03]} 19. Nf4 {[%emt 0:11:24]} Kg7 {[%emt 0:04:44]} 20. Rab1 {[%emt 0:12:26]} Bc8 {[%emt 0:00:38]} 21. d5 {[%emt 0:15:16]} c5 {[%emt 0:11:08]} 22. Rfd1 {[%emt 0:07:12]} Kh6 {[%emt 0:10:41]} 23. Re1 {[%emt 0:10:16]} Bd6 {[%emt 0:03:56]} 24. Ra1 {[%emt 0:01:52]} g5 {[%emt 0:01:08]} 25. Nd3 {[%emt 0:02:17]} Qc7 {[%emt 0:00:23]} 26. Re2 {[%emt 0:03:54]} Rg8 {[%emt 0:00:42]} 27. hxg5+ {[%emt 0:00:53]} fxg5 {[%emt 0:00:15]} 28. Nd2 {[%emt 0:06:09]} h4 {[%emt 0:03:13]} 29. g4 {[%emt 0:02:03]} Nxd2 {[%emt 0:01:57]} 30. Qxd2 {[%emt 0:00:40]} fxg4 {[%emt 0:00:01]} 31. e4 {[%emt 0:00:34]} g3 {[%emt 0:02:24]} 32. fxg3 {[%emt 0:01:47]} Bxg3 {[%emt 0:01:09]} 33. Rf1 {[%emt 0:00:32]} h3 {[%emt 0:09:38]} 34. Rf6+ {[%emt 0:00:38]} Rg6 {[%emt 0:00:21]} 35. d6 {[%emt 0:01:08]} Bxd6 {[%emt 0:01:18]} 36. Rxg6+ {[%emt 0:00:52]} Kxg6 {[%emt 0:00:02]} 37. e5 {[%emt 0:00:30]} Bxe5 {[%emt 0:00:29]} 38. Be4+ {[%emt 0:00:04]} Kh6 {[%emt 0:00:07]} 39. Nxe5 {[%emt 0:00:44]} Qxe5 {[%emt 0:00:14]} 40. Kh1 {[%emt 0:00:23]} Qd4 {[%emt 0:01:12]} 41. Qe1 {[%emt 0:00:33]} Bg4 {[%emt 0:00:14]} 42. Re3 {[%emt 0:00:50]} Rxe4 {[%emt 0:00:03]} 0-1

[Event "VII Lorca Open 2018"]
[Site "Lorca"]
[Date "2018.12.27"]
[Round "2"]
[White "Svetushkin, Dmitry"]
[Black "Gines Esteo, Pedro Antonio"]
[Result "1-0"]
[ECO "B12"]
[WhiteElo "2592"]
[BlackElo "2339"]
[Annotator "ChessBase"]
[PlyCount "135"]
[EventDate "2018.12.26"]
[EventType "swiss"]
[EventCountry "ESP"]
[SourceTitle "playchess.com"]
[Source "ChessBase"]
[SourceQuality "1"]
[TimeControl "5400+30"]

1. e4 {[%emt 0:00:00]} c6 {[%emt 0:00:00]} 2. d4 {[%emt 0:00:33]} d5 {[%emt 0:00:02]} 3. e5 {[%emt 0:00:06]} Bf5 {[%emt 0:00:08]} 4. c4 {[%emt 0:00:07]} e6 {[%emt 0:00:52]} 5. Nc3 {[%emt 0:00:11]} Ne7 {[%emt 0:02:39]} 6. a3 {[%emt 0:00:07]} dxc4 {[%emt 0:03:04]} 7. Bxc4 {[%emt 0:00:08]} Nd7 {[%emt 0:01:10]} 8. Nge2 {[%emt 0:00:11]} Nb6 {[%emt 0:03:26]} 9. Bb3 {[%emt 0:00:59]} Bg6 {[%emt 0:03:25]} 10. h4 {[%emt 0:03:23]} h6 {[%emt 0:05:05]} 11. Nf4 {[%emt 0:01:27]} Bh7 {[%emt 0:00:18]} 12. Qh5 {[%emt 0:03:39]} g6 {[%emt 0:02:23]} 13. Qg4 {[%emt 0:09:27]} Qxd4 {[%emt 0:19:59]} 14. Be3 {[%emt 0:00:38]} Qxe5 {[%emt 0:00:04]} 15. O-O-O {[%emt 0:00:13]} Nf5 {[%emt 0:00:05]} 16. Bxb6 {[%emt 0:13:14]} Bxa3 {[%emt 0:02:45]} 17. Qf3 {[%emt 0:05:02]} axb6 {[%emt 0:01:11]} 18. Rhe1 {[%emt 0:00:03]} Nd4 {[%emt 0:29:24]} 19. Rxe5 {[%emt 0:32:13]} Nxf3 {[%emt 0:00:18]} 20. gxf3 {[%emt 0:02:04]} Be7 {[%emt 0:08:47]} 21. Ng2 {[%emt 0:00:44]} g5 {[%emt 0:05:53]} 22. h5 {[%emt 0:02:38]} Bc5 {[%emt 0:07:59]} 23. Re2 {[%emt 0:06:31]} Ke7 {[%emt 0:00:01]} 24. Bc2 {[%emt 0:00:12]} Ra1+ {[%emt 0:00:49]} 25. Nb1 {[%emt 0:00:43]} Bb4 {[%emt 0:02:10]} 26. Bxh7 {[%emt 0:01:44]} Rxh7 {[%emt 0:00:01]} 27. Ne3 {[%emt 0:00:09]} Ra5 {[%emt 0:00:02]} 28. Nd2 {[%emt 0:03:57]} Ra1+ {[%emt 0:01:02]} 29. Nb1 {[%emt 0:00:18]} Ra5 {[%emt 0:00:05]} 30. Kc2 {[%emt 0:01:15]} f5 {[%emt 0:01:22]} 31. Nc4 {[%emt 0:02:56]} Rd5 {[%emt 0:00:28]} 32. Nxb6 {[%emt 0:03:21]} Rxd1 33. Kxd1 {[%emt 0:00:06]} Kf6 {[%emt 0:00:23]} 34. Nc3 {[%emt 0:01:29]} Bc5 {[%emt 0:00:59]} 35. Nca4 {[%emt 0:01:07]} Bd4 {[%emt 0:00:24]} 36. b4 {[%emt 0:00:04]} e5 {[%emt 0:00:43]} 37. Nc5 {[%emt 0:00:19]} g4 {[%emt 0:00:20]} 38. Nbd7+ {[%emt 0:02:06]} Kg5 {[%emt 0:00:10]} 39. Ne6+ {[%emt 0:02:43]} Kh4 {[%emt 0:00:00]} 40. Nxe5 {[%emt 0:00:06]} Bxe5 {[%emt 0:01:31]} 41. Rxe5 {[%emt 0:00:05]} gxf3 {[%emt 0:00:18]} 42. Kd2 {[%emt 0:01:00]} Rh8 {[%emt 0:00:44]} 43. Rxf5 {[%emt 0:00:47]} Kg4 {[%emt 0:00:30]} 44. Rf4+ {[%emt 0:02:29]} Kxh5 {[%emt 0:00:01]} 45. Ke3 {[%emt 0:00:37]} Ra8 {[%emt 0:00:33]} 46. Kxf3 {[%emt 0:00:43]} Kg6 {[%emt 0:00:44]} 47. Nc5 {[%emt 0:00:27]} b6 {[%emt 0:00:12]} 48. Nd7 {[%emt 0:00:09]} c5 {[%emt 0:00:57]} 49. Nxb6 {[%emt 0:00:22]} Ra3+ {[%emt 0:00:01]} 50. Kg2 {[%emt 0:00:30]} cxb4 {[%emt 0:00:08]} 51. Rxb4 {[%emt 0:00:07]} Kg5 {[%emt 0:00:03]} 52. Nd5 {[%emt 0:00:07]} Rd3 {[%emt 0:00:54]} 53. Ne3 {[%emt 0:00:05]} Ra3 {[%emt 0:00:04]} 54. Kg3 {[%emt 0:00:04]} Kg6 {[%emt 0:00:08]} 55. Rb5 {[%emt 0:00:04]} Ra4 {[%emt 0:00:12]} 56. f4 {[%emt 0:00:20]} Ra3 {[%emt 0:00:27]} 57. Re5 {[%emt 0:00:07]} Kf6 {[%emt 0:00:05]} 58. Kg4 {[%emt 0:00:07]} Ra1 {[%emt 0:00:23]} 59. Nd5+ {[%emt 0:00:07]} Kg7 {[%emt 0:00:09]} 60. Re7+ {[%emt 0:00:09]} Kf8 {[%emt 0:00:47]} 61. Rd7 {[%emt 0:00:07]} Ra6 {[%emt 0:00:17]} 62. Kf5 {[%emt 0:00:23]} h5 {[%emt 0:00:10]} 63. Nf6 {[%emt 0:00:26]} Ra1 {[%emt 0:00:05]} 64. Ne4 {[%emt 0:01:50]} h4 {[%emt 0:00:47]} 65. Ng5 {[%emt 0:00:41]} Kg8 {[%emt 0:00:21]} 66. Kg4 {[%emt 0:00:46]} Rf1 {[%emt 0:00:08]} 67. f5 {[%emt 0:00:16]} Kf8 {[%emt 0:00:08]} 68. f6 {[%emt 0:00:18]} 1-0

[Event "VII Lorca Open 2018"]
[Site "Lorca"]
[Date "2018.12.27"]
[Round "2"]
[White "Ibarra Jerez, Jose Carlos"]
[Black "Espineira Gonzalez, Diego"]
[Result "1-0"]
[ECO "C05"]
[WhiteElo "2558"]
[BlackElo "2299"]
[Annotator "ChessBase"]
[PlyCount "106"]
[EventDate "2018.12.26"]
[EventType "swiss"]
[EventCountry "ESP"]
[SourceTitle "playchess.com"]
[Source "ChessBase"]
[SourceQuality "1"]
[TimeControl "5400+30"]

1. e4 {[%emt 0:00:00]} e6 {[%emt 0:00:00]} 2. d4 {[%emt 0:00:21]} d5 {[%emt 0:00:00]} 3. Nd2 {[%emt 0:00:56]} Nf6 {[%emt 0:00:00]} 4. e5 {[%emt 0:00:46]} Nfd7 {[%emt 0:00:00]} 5. f4 {[%emt 0:00:43]} c5 {[%emt 0:00:02]} 6. Ngf3 {[%emt 0:00:33]} Nc6 {[%emt 0:00:20]} 7. Nb3 {[%emt 0:00:36]} c4 {[%emt 0:05:51]} 8. Nbd2 {[%emt 0:00:29]} b5 {[%emt 0:00:21]} 9. Be2 {[%emt 0:01:33]} Qb6 {[%emt 0:01:55]} 10. Nf1 {[%emt 0:00:47]} f6 {[%emt 0:04:09]} 11. Ne3 {[%emt 0:14:34]} fxe5 {[%emt 0:00:19]} 12. fxe5 {[%emt 0:00:30]} Be7 {[%emt 0:00:17]} 13. c3 {[%emt 0:02:41]} b4 {[%emt 0:01:57]} 14. O-O {[%emt 0:03:02]} O-O {[%emt 0:01:33]} 15. Qe1 {[%emt 0:03:05]} bxc3 {[%emt 0:02:20]} 16. bxc3 {[%emt 0:00:31]} Qa5 {[%emt 0:00:58]} 17. Bd1 {[%emt 0:02:03]} Rf7 {[%emt 0:04:08]} 18. Bc2 {[%emt 0:02:43]} Nf8 {[%emt 0:01:23]} 19. Ng4 {[%emt 0:06:06]} Rb8 {[%emt 0:03:20]} 20. h4 {[%emt 0:07:18]} h5 {[%emt 0:36:55]} 21. Nf2 {[%emt 0:07:24]} Rxf3 {[%emt 0:04:16]} 22. gxf3 {[%emt 0:00:18]} Bxh4 {[%emt 0:00:04]} 23. Kg2 {[%emt 0:02:13]} Bd7 {[%emt 0:03:16]} 24. Rh1 {[%emt 0:02:38]} Be7 {[%emt 0:01:01]} 25. Nh3 {[%emt 0:07:22]} Be8 {[%emt 0:01:35]} 26. Nf4 {[%emt 0:04:15]} Ba3 {[%emt 0:01:41]} 27. Rb1 {[%emt 0:05:44]} Bxc1 {[%emt 0:01:51]} 28. Rxb8 Nxb8 {[%emt 0:00:08]} 29. Qxc1 {[%emt 0:03:14]} Qxa2 {[%emt 0:00:07]} 30. Kg3 {[%emt 0:01:38]} Nc6 {[%emt 0:03:29]} 31. Nxh5 Bxh5 {[%emt 0:06:02]} 32. Rxh5 {[%emt 0:01:44]} Ne7 {[%emt 0:00:11]} 33. Rh2 {[%emt 0:02:53]} Qa5 {[%emt 0:00:15]} 34. Qg5 {[%emt 0:01:41]} Kf7 {[%emt 0:04:39]} 35. Qf4+ {[%emt 0:00:47]} Kg8 {[%emt 0:01:50]} 36. Qh4 {[%emt 0:07:58]} Kf7 {[%emt 0:01:48]} 37. Qf4+ {[%emt 0:00:09]} Kg8 {[%emt 0:00:04]} 38. Qd2 {[%emt 0:01:03]} Kf7 {[%emt 0:00:48]} 39. Rh1 {[%emt 0:00:52]} Nfg6 {[%emt 0:00:50]} 40. Rg1 {[%emt 0:00:42]} Qd8 {[%emt 0:00:10]} 41. Kf2 {[%emt 0:01:25]} Qa5 {[%emt 0:01:20]} 42. Rg4 {[%emt 0:01:43]} Qa1 {[%emt 0:01:31]} 43. Rg1 {[%emt 0:00:06]} Qa5 {[%emt 0:00:07]} 44. Rb1 {[%emt 0:00:37]} Qa6 {[%emt 0:04:43]} 45. Qc1 {[%emt 0:02:21]} Qc8 {[%emt 0:01:24]} 46. Qg5 {[%emt 0:00:13]} Qa6 {[%emt 0:00:52]} 47. Ke3 {[%emt 0:00:17]} Qa3 {[%emt 0:00:27]} 48. Bxg6+ {[%emt 0:00:59]} Nxg6 {[%emt 0:00:06]} 49. Rb7+ {[%emt 0:00:11]} Ne7 {[%emt 0:00:22]} 50. Qh5+ {[%emt 0:01:02]} g6 {[%emt 0:00:44]} 51. Qh7+ {[%emt 0:00:05]} Ke8 {[%emt 0:00:01]} 52. Qh8+ {[%emt 0:00:14]} Kf7 {[%emt 0:00:02]} 53. Qf6+ {[%emt 0:00:26]} Ke8 {[%emt 0:00:01]} 1-0